bitfinex/quotes_SOLUSD_20250902
["timestamp","ask_amount","ask_price","bid_price","bid_amount"]
[1756817960761,7.99368132,198.39,198.37,0.03]
[1756817960975,7.99368132,198.38,198.37,0.03]
[1756817961265,7.99368132,198.38,198.37,43.35]
[1756817962173,7.99368132,198.38,198.37,0.03]
[1756817962362,13.03451204,198.38,198.37,43.35]
[1756817962866,13.03451204,198.38,198.37,0.03]
[1756817963750,13.03451204,198.38,198.35,0.03]
[1756817963957,14.64736264,198.36,198.35,0.03]
[1756817964145,7.32368132,198.36,198.35,0.03]
[1756817964470,13.03502029,198.36,198.35,0.03]
[1756817965049,12.36502029,198.36,198.35,0.03]
[1756817965251,13.03502029,198.36,198.35,0.03]
[1756817965454,7.99368132,198.36,198.35,0.03]
[1756817965656,7.32368132,198.36,198.35,0.03]
[1756817966174,12.36502029,198.36,198.35,0.03]
[1756817966367,13.03502029,198.36,198.35,0.03]
[1756817966953,20.35870161,198.36,198.35,0.03]
[1756817967269,5.71133897,198.36,198.35,0.03]
[1756817967473,13.03502029,198.36,198.35,0.03]
[1756817969042,133.8,198.43,198.35,0.03]
[1756817969043,0.67,198.44,198.36,13.59559401]
[1756817969353,12.42282102,198.45,198.39,0.14216157]
[1756817969549,5.0991397,198.45,198.39,7.46584289]
[1756817969768,12.42282102,198.45,198.39,7.46584289]
[1756817970148,0.06,198.45,198.41,13.59559401]
[1756817970347,12.42274313,198.45,198.42,43.28]
[1756817970748,7.99368132,198.44,198.42,43.28]
[1756817971052,5.03956055,198.43,198.39,13.59559401]
[1756817971241,5.03937274,198.44,198.4,43.93]
[1756817971446,5.03937274,198.44,198.4,43.26]
[1756817971643,12.36305406,198.44,198.4,43.26]
[1756817971854,5.03937274,198.44,198.4,43.26]
[1756817972860,13.03305406,198.44,198.4,43.26]
[1756817973070,12.36305406,198.44,198.4,43.26]
[1756817973372,5.03937274,198.44,198.4,43.26]
[1756817974550,5.03937274,198.44,198.4,13.59559401]
[1756817974764,7.32368132,198.41,198.36,13.73775558]
[1756817974961,7.32368132,198.42,198.38,13.59559401]
[1756817975777,7.32368132,198.4,198.39,43.24]
[1756817975990,7.99368132,198.4,198.35,0.03]
[1756817976168,0.67,198.39,198.36,43.24]
[1756817976477,0.67,198.38,198.36,43.24]
[1756817976691,7.99368132,198.37,198.35,0.03]
[1756817976867,5.71108484,198.37,198.36,43.24]
[1756817977754,5.71108484,198.37,198.35,43.27]
[1756817977962,7.32368132,198.36,198.35,43.27]
[1756817978194,7.99368132,198.36,198.35,43.27]
[1756817978501,7.32368132,198.36,198.35,43.27]
[1756817978786,5.04108484,198.37,198.35,43.27]
[1756817978989,5.04057664,198.39,198.35,0.03]
[1756817979288,5.04057664,198.39,198.36,43.22]
[1756817979495,5.03977328,198.43,198.37,14.27559401]
[1756817979665,5.03977328,198.43,198.35,0.03]
[1756817979854,0.67,198.42,198.36,43.22]
[1756817980369,7.32368132,198.38,198.36,43.22]
[1756817980772,7.32368132,198.4,198.37,0.68]
[1756817981156,7.32368132,198.38,198.36,43.22]
[1756817981573,7.32368132,198.39,198.36,43.22]
[1756817982084,7.32368132,198.38,198.37,43.2]
[1756817982462,7.32368132,198.39,198.37,43.2]
[1756817982771,7.32368132,198.41,198.38,14.27559401]
[1756817982973,38.36349585,198.42,198.38,14.27559401]
[1756817983482,38.36349585,198.42,198.37,43.2]
[1756817983483,7.32368132,198.39,198.37,43.2]
[1756817983689,7.99368132,198.38,198.37,43.2]
[1756817983884,7.99368132,198.38,198.35,0.03]
[1756817984091,7.32368132,198.36,198.35,0.03]
[1756817984291,7.32368132,198.36,198.35,43.23]
[1756817984805,7.32368132,198.36,198.35,0.03]
[1756817984968,7.32368132,198.36,198.35,43.23]
[1756817985498,5.04032258,198.4,198.35,43.89]
[1756817985802,7.32368132,198.41,198.36,14.27559401]
[1756817985960,7.32368132,198.41,198.38,13.59559401]
[1756817986390,7.32368132,198.41,198.36,13.73775558]
[1756817986696,7.32368132,198.41,198.38,14.27559401]
[1756817986992,7.32368132,198.4,198.38,13.59559401]
[1756817987167,7.32368132,198.39,198.38,13.59559401]
[1756817987366,12.36425796,198.39,198.35,0.03]
[1756817987569,12.36425796,198.39,198.37,13.59559401]
[1756817987987,12.36425796,198.39,198.35,0.03]
[1756817988163,7.32368132,198.38,198.36,43.18]
[1756817988364,7.32368132,198.38,198.35,0.03]
[1756817988591,7.32368132,198.36,198.35,0.03]
[1756817989194,7.32368132,198.36,198.35,43.19]
[1756817989492,12.36502029,198.36,198.35,43.19]
[1756817989668,5.04133897,198.36,198.35,43.19]
[1756817989859,0.67,198.4,198.35,43.19]
[1756817990075,7.32368132,198.37,198.35,43.19]
[1756817990468,7.32368132,198.36,198.35,43.19]
[1756817990960,7.99368132,198.36,198.35,0.03]
[1756817991681,13.03502029,198.36,198.35,0.03]
[1756817992173,5.04032258,198.4,198.35,0.03]
[1756817992385,7.32368132,198.38,198.35,0.03]
[1756817992876,7.32368132,198.39,198.36,13.59559401]
[1756817993185,26.0,198.41,198.37,43.14]
[1756817993383,26.67,198.41,198.37,43.14]
[1756817993585,7.32368132,198.39,198.37,43.14]
[1756817994591,7.32368132,198.38,198.37,56.73559401]
[1756817994970,5.04065088,198.39,198.37,56.73559401]
[1756817995170,7.32368132,198.38,198.37,56.73559401]
[1756817995395,7.32368132,198.38,198.37,43.14]
[1756817995601,7.32368132,198.38,198.35,0.03]
[1756817995784,7.32368132,198.38,198.36,43.14]
[1756817996801,7.32368132,198.39,198.36,43.14]
[1756817997010,3.67481502,198.38,198.36,43.14]
[1756817997214,3.67481502,198.37,198.36,56.73559401]
[1756817997524,3.53334958,198.37,198.36,56.73559401]
[1756817999297,10.8570309,198.37,198.35,0.03]
[1756817999600,5.71112845,198.37,198.35,0.03]
[1756817999789,0.67,198.36,198.35,0.03]
[1756818000105,0.67,198.36,198.35,43.13]
[1756818000310,31.04009188,198.41,198.35,43.13]
[1756818000512,31.04083072,198.38,198.36,43.1]
[1756818000695,0.67,198.37,198.35,0.03]
[1756818001010,7.32368132,198.36,198.35,0.03]
[1756818001193,7.32368132,198.36,198.34,1e-08]
[1756818001194,14.64736264,198.36,198.34,1e-08]
[1756818001509,7.99368132,198.35,198.34,1e-08]
[1756818002626,13.03527446,198.35,198.22,36.36]
[1756818002790,13.03527446,198.35,198.2,20.98]
[1756818002791,7.32368132,198.26,198.2,20.98]
[1756818003129,4.12807815,198.3,198.22,0.68]
[1756818003290,4.12807815,198.3,198.25,26.33]
[1756818003291,26.0,198.3,198.25,26.33]
[1756818003613,4.79807815,198.32,198.27,13.59559401]
[1756818003614,7.32368132,198.31,198.27,13.59559401]
[1756818003818,7.32368132,198.29,198.27,13.59559401]
[1756818003990,5.04159314,198.35,198.29,13.59559401]
[1756818004312,26.0,198.35,198.31,13.59559401]
[1756818004549,7.32368132,198.4,198.34,0.14216157]
[1756818004854,5.03956055,198.43,198.36,13.59559401]
[1756818005168,0.67,198.42,198.32,0.68]
[1756818005332,0.67,198.42,198.33,40.72]
[1756818005644,7.32368132,198.34,198.33,40.72]
[1756818006138,7.32368132,198.34,198.28,13.59559401]
[1756818006332,7.32368132,198.31,198.3,13.59559401]
[1756818006518,5.04242553,198.32,198.28,13.73775558]
[1756818006714,7.32368132,198.29,198.28,13.59559401]
[1756818006910,7.32368132,198.29,198.25,13.62559401]
[1756818007116,7.32368132,198.26,198.25,13.62559401]
[1756818007317,7.32368132,198.26,198.25,0.03]
[1756818007553,7.99368132,198.26,198.25,0.03]
[1756818007718,0.67,198.26,198.25,0.03]
[1756818008039,0.67,198.33,198.25,0.03]
[1756818008345,4.79807815,198.4,198.29,7.49584289]
[1756818008545,7.32368132,198.38,198.31,26.10380653]
[1756818008843,7.32368132,198.37,198.34,13.59559401]
[1756818009144,7.32368132,198.35,198.3,13.59559401]
[1756818009340,0.06,198.39,198.32,13.59559401]
[1756818009526,3.66809334,198.38,198.32,13.59559401]
[1756818009728,3.66809334,198.37,198.33,43.06]
[1756818009926,10.92389694,198.34,198.29,0.03]
[1756818010154,10.92389694,198.36,198.3,54.67389694]
[1756818010317,3.668542,198.35,198.31,24.66165252]
[1756818010522,10.92389694,198.35,198.31,0.14216157]
[1756818010712,26.0,198.37,198.33,13.59559401]
[1756818010919,3.66855336,198.36,198.33,14.28559401]
[1756818011214,10.92389694,198.35,198.31,0.14216157]
[1756818011418,10.92389694,198.33,198.32,43.06]
[1756818011620,10.92389694,198.33,198.32,56.65559401]
[1756818011849,15.30151545,198.33,198.31,43.06]
[1756818012049,0.71,198.37,198.29,0.03]
[1756818012253,3.66777763,198.36,198.3,43.04]
[1756818012450,3.66777763,198.35,198.31,13.59559401]
[1756818012629,0.06,198.39,198.33,13.59559401]
[1756818012630,10.92389694,198.37,198.33,13.59559401]
[1756818012826,3.66860336,198.36,198.33,13.59559401]
[1756818013056,10.92389694,198.36,198.31,0.14216157]
[1756818013371,10.92389694,198.33,198.32,43.04]
[1756818013934,10.92389694,198.33,198.29,0.03]
[1756818014135,26.71,198.36,198.31,13.59559401]
[1756818014349,10.92389694,198.33,198.31,13.59559401]
[1756818014534,10.92389694,198.34,198.31,13.59559401]
[1756818015360,10.92389694,198.33,198.31,13.59559401]
[1756818015753,10.92389694,198.34,198.29,0.17216157]
[1756818016053,10.92389694,198.34,198.31,13.59559401]
[1756818016363,10.92389694,198.36,198.3,24.51949095]
[1756818016540,3.67060435,198.35,198.33,13.59559401]
[1756818016735,10.92389694,198.37,198.33,14.28559401]
[1756818017054,10.92389694,198.34,198.29,0.17216157]
[1756818017264,26.06,198.39,198.33,10.92389694]
[1756818017558,26.06,198.39,198.33,11.61389694]
[1756818017559,3.67161482,198.38,198.33,11.61389694]
[1756818017760,0.06,198.39,198.38,13.59559401]
[1756818017973,0.06,198.39,198.38,68.87573559]
[1756818018759,0.06,198.39,198.38,73.91656631]
[1756818019339,0.06,198.39,198.38,84.84046325]
[1756818019742,0.06,198.39,198.38,30.89656631]
[1756818019953,0.06,198.39,198.38,73.89656631]
[1756818020166,1e-08,198.41,198.4,39.59559401]
[1756818020466,1e-08,198.41,198.4,57.8544139]
[1756818020640,0.06,198.43,198.42,29.70146705]
[1756818020842,0.06,198.45,198.44,39.73775558]
[1756818021150,0.06,198.49,198.45,13.73775558]
[1756818021345,0.06,198.49,198.46,68.16553239]
[1756818021551,0.06,198.49,198.46,68.85553239]
[1756818021948,0.06,198.49,198.48,39.59559401]
[1756818022274,0.06,198.49,198.48,25.16548162]
[1756818022448,0.06,198.49,198.48,25.85548162]
[1756818022761,0.06,198.49,198.48,30.89377263]
[1756818023220,0.2,198.55,198.52,39.59559401]
[1756818023342,0.2,198.55,198.54,24.51949095]
[1756818023543,0.2,198.55,198.54,67.64165252]
[1756818023778,0.2,198.55,198.54,68.33165252]
[1756818024037,0.2,198.55,198.54,70.35017244]
[1756818024264,0.2,198.56,198.55,0.14216157]
[1756818024461,0.2,198.56,198.55,25.85530399]
[1756818024845,0.2,198.56,198.55,19.96792178]
[1756818025156,0.2,198.56,198.55,73.87181872]
[1756818026070,0.06,198.58,198.57,13.73775558]
[1756818026247,0.06,198.58,198.57,14.24135632]
[1756818026446,0.06,198.58,198.57,15.21567946]
[1756818026759,0.2,198.62,198.59,14.02207872]
[1756818026975,0.2,198.62,198.59,73.44502595]
[1756818027173,0.2,198.62,198.59,26.13952568]
[1756818027474,0.2,198.62,198.59,74.11502595]
[1756818027846,0.2,198.62,198.59,20.25112901]
[1756818028050,0.2,198.62,198.59,74.11502595]
[1756818029257,0.2,198.66,198.59,74.11502595]
[1756818029258,0.2,198.66,198.62,39.87991715]
[1756818029564,0.2,198.66,198.64,24.66165252]
[1756818029978,0.2,198.66,198.64,67.58165252]
[1756818030349,0.2,198.66,198.64,68.27165252]
[1756818031075,0.2,198.66,198.64,67.58165252]
[1756818031375,0.2,198.66,198.64,72.6158853]
[1756818031670,0.91,198.65,198.64,56.51559401]
[1756818031884,0.91,198.65,198.64,13.59559401]
[1756818032054,0.91,198.65,198.64,42.9]
[1756818032259,0.91,198.65,198.64,67.41949095]
[1756818032564,0.91,198.65,198.64,56.49559401]
[1756818032767,0.91,198.65,198.64,67.41949095]
[1756818033278,0.2,198.65,198.64,67.41949095]
[1756818033877,0.2,198.65,198.64,56.49559401]
[1756818034099,0.2,198.65,198.64,72.5958853]
[1756818034252,0.2,198.65,198.64,61.67198836]
[1756818034453,0.2,198.65,198.64,72.5958853]
[1756818035266,0.2,198.65,198.64,24.66165252]
[1756818035457,0.2,198.65,198.64,93.54165252]
[1756818035654,0.2,198.65,198.64,98.5758853]
[1756818036173,0.2,198.65,198.64,50.66165252]
[1756818036374,16.8678763,198.65,198.57,5.03598718]
[1756818036574,11.63389694,198.64,198.56,5.0362525]
[1756818036760,0.71,198.63,198.57,10.92389694]
[1756818036959,10.92389694,198.61,198.58,42.88]
[1756818037178,0.2,198.65,198.59,56.47559401]
[1756818037179,0.71,198.6,198.59,56.47559401]
[1756818037480,0.71,198.64,198.61,0.14216157]
[1756818037777,0.2,198.65,198.63,13.73775558]
[1756818037960,10.92389694,198.64,198.6,13.59559401]
[1756818038163,10.92389694,198.61,198.55,36.34]
[1756818038367,10.92389694,198.56,198.55,36.34]
[1756818038687,0.71,198.56,198.55,42.86]
[1756818038853,11.63389694,198.56,198.5,232.38183711]
[1756818039056,11.61389694,198.55,198.5,232.38183711]
[1756818039274,26.0,198.61,198.52,39.73775558]
[1756818039275,0.69,198.59,198.52,39.73775558]
[1756818039589,10.92389694,198.61,198.58,13.59559401]
[1756818039751,31.23400655,198.65,198.59,56.45559401]
[1756818039959,10.92389694,198.64,198.6,13.59559401]
[1756818040151,26.2,198.65,198.6,13.59559401]
[1756818040152,0.69,198.63,198.6,13.59559401]
[1756818040358,0.69,198.62,198.6,13.59559401]
[1756818040581,0.2,198.65,198.6,13.59559401]
[1756818040771,0.69,198.64,198.61,42.86]
[1756818041081,26.0,198.6,198.42,0.68]
[1756818041379,10.92389694,198.51,198.4,36.3]
[1756818041561,11.61389694,198.51,198.5,275.24183711]
[1756818041762,0.69,198.54,198.5,275.24183711]
[1756818041980,0.69,198.53,198.5,275.24183711]
[1756818042198,0.69,198.52,198.51,13.59559401]
[1756818042368,0.69,198.55,198.51,13.59559401]
[1756818042562,0.69,198.54,198.53,13.59559401]
[1756818043083,0.69,198.57,198.53,13.59559401]
[1756818043252,0.69,198.56,198.54,42.86]
[1756818043456,0.69,198.55,198.5,243.30573405]
[1756818043684,0.69,198.54,198.51,56.45559401]
[1756818043877,0.69,198.53,198.51,56.45559401]
[1756818044064,0.69,198.56,198.51,67.37949095]
[1756818044259,0.69,198.55,198.51,67.37949095]
[1756818044655,0.69,198.55,198.51,56.45559401]
[1756818044862,10.92389694,198.57,198.51,67.37949095]
[1756818045057,0.69,198.56,198.51,56.45559401]
[1756818045261,0.69,198.55,198.51,56.45559401]
[1756818045484,16.64971889,198.58,198.52,11.06605851]
[1756818045660,0.69,198.58,198.57,13.59559401]
[1756818045986,0.2,198.65,198.57,56.43559401]
[1756818045987,16.64893013,198.61,198.57,56.43559401]
[1756818046188,0.2,198.65,198.59,13.59559401]
[1756818046373,11.81389694,198.65,198.6,42.84]
[1756818046685,0.69,198.64,198.6,42.84]
[1756818046860,0.69,198.64,198.61,13.59559401]
[1756818047065,0.2,198.65,198.63,24.51949095]
[1756818047277,0.69,198.64,198.63,13.59559401]
[1756818047884,0.69,198.64,198.63,56.43559401]
[1756818049165,0.2,198.65,198.64,13.59559401]
[1756818049986,5.23397936,198.65,198.64,13.59559401]
[1756818050167,0.89,198.65,198.64,42.82]
[1756818050683,5.92397936,198.65,198.64,42.82]
[1756818051089,16.8478763,198.65,198.64,42.82]
[1756818051785,5.92397936,198.65,198.64,42.82]
[1756818051968,16.8478763,198.65,198.64,42.82]
[1756818052370,5.92397936,198.65,198.64,42.82]
[1756818052685,0.89,198.65,198.64,42.82]
[1756818052877,0.2,198.65,198.64,67.33949095]
[1756818053077,0.2,198.65,198.64,56.41559401]
[1756818053893,5.92397936,198.65,198.64,56.41559401]
[1756818054278,0.2,198.65,198.64,56.41559401]
[1756818055193,0.2,198.65,198.64,67.48165252]
[1756818055393,0.2,198.65,198.64,72.5158853]
[1756818055591,0.2,198.65,198.64,30.87930857]
[1756818055891,0.2,198.65,198.64,68.64507579]
[1756818056192,0.2,198.65,198.64,73.1758853]
[1756818057705,0.2,198.65,198.64,73.67930857]
[1756818058000,0.2,198.65,198.64,68.64507579]
[1756818058189,0.2,198.65,198.64,73.67930857]
[1756818059973,0.2,198.65,198.64,25.84507579]
[1756818060181,0.2,198.65,198.64,73.65930857]
[1756818060376,17.60651943,198.79,198.68,0.14216157]
[1756818060580,17.60651943,198.79,198.67,39.59559401]
[1756818060581,10.92389694,198.75,198.7,0.14216157]
[1756818060889,10.92389694,198.75,198.72,13.59559401]
[1756818061206,0.2,198.85,198.74,13.59559401]
[1756818061500,10.92389694,198.79,198.76,13.59559401]
[1756818061679,26.0,198.83,198.77,42.78]
[1756818061884,10.92389694,198.79,198.77,42.78]
[1756818062407,0.69,198.82,198.78,13.59559401]
[1756818062694,0.69,198.82,198.8,13.59559401]
[1756818062894,5.22896746,198.85,198.84,26.0]
[1756818062895,0.2,198.85,198.84,26.0]
[1756818063099,0.2,198.85,198.84,45.44692476]
[1756818063403,0.2,198.85,198.84,98.4508217]
[1756818063565,0.2,198.85,198.84,13.73775558]
[1756818063765,0.2,198.85,198.84,67.42165252]
[1756818063970,0.2,198.85,198.84,68.10165252]
[1756818064194,0.2,198.85,198.84,67.42165252]
[1756818064392,0.2,198.85,198.84,13.59559401]
[1756818064702,11.81389694,198.85,198.84,42.76]
[1756818064886,16.8428132,198.85,198.84,42.76]
[1756818065195,16.8428132,198.85,198.83,42.76]
[1756818065383,11.61389694,198.84,198.83,42.76]
[1756818065788,0.69,198.84,198.83,42.76]
[1756818066182,10.92389694,198.84,198.83,42.76]
[1756818066388,11.61389694,198.84,198.83,42.76]
[1756818067071,0.69,198.84,198.83,42.76]
[1756818067393,16.64306612,198.84,198.76,36.3]
[1756818067606,10.92389694,198.8,198.77,56.33559401]
[1756818067979,10.92389694,198.81,198.77,56.33559401]
[1756818068194,10.92389694,198.82,198.77,57.01559401]
[1756818068416,0.2,198.85,198.78,0.14216157]
[1756818068633,0.2,198.85,198.82,13.59559401]
[1756818068784,0.2,198.85,198.78,26.82216157]
[1756818068785,10.92389694,198.83,198.78,0.14216157]
[1756818068989,0.68,198.82,198.8,13.59559401]
[1756818069184,0.68,198.82,198.79,42.74]
[1756818069487,0.68,198.82,198.76,36.3]
[1756818069488,0.68,198.81,198.77,13.59559401]
[1756818069688,0.68,198.81,198.76,36.3]
[1756818069689,0.68,198.8,198.74,42.74]
[1756818069997,26.0,198.81,198.74,42.74]
[1756818069998,10.92389694,198.76,198.74,42.74]
[1756818070403,10.92389694,198.75,198.74,42.74]
[1756818070601,11.60389694,198.75,198.74,42.74]
[1756818070798,0.68,198.75,198.74,42.74]
[1756818071422,11.60389694,198.75,198.74,42.74]
[1756818071713,7.98693285,198.75,198.68,13.59559401]
[1756818071919,7.30693285,198.69,198.68,13.59559401]
[1756818072212,7.98693285,198.69,198.68,42.72]
[1756818073025,7.98693285,198.69,198.65,42.72]
[1756818073227,0.68,198.68,198.66,42.72]
[1756818073395,0.68,198.67,198.65,42.72]
[1756818073717,17.61360776,198.71,198.65,42.72]
[1756818073718,0.68,198.66,198.65,42.72]
[1756818073918,0.68,198.66,198.63,42.72]
[1756818074130,26.0,198.68,198.61,42.72]
[1756818074131,0.68,198.65,198.61,42.72]
[1756818074334,7.30693285,198.68,198.63,13.59559401]
[1756818074831,7.30693285,198.66,198.62,13.59559401]
[1756818075016,7.30693285,198.63,198.62,42.72]
[1756818077312,7.30693285,198.75,198.72,13.59559401]
[1756818077508,7.30693285,198.73,198.71,42.72]
[1756818077704,7.98693285,198.72,198.71,42.72]
[1756818078813,15.2938657,198.72,198.69,42.72]
[1756818079119,7.30693285,198.7,198.69,42.72]
[1756818079735,5.03208708,198.73,198.69,42.72]
[1756818079736,5.03208708,198.73,198.69,56.31559401]
[1756818079941,0.68,198.73,198.69,56.31559401]
[1756818080234,7.30693285,198.71,198.7,13.59559401]
[1756818081222,0.06,198.74,198.7,13.59559401]
[1756818081402,7.30693285,198.73,198.7,13.59559401]
[1756818081603,0.06,198.74,198.73,0.14216157]
[1756818081906,0.06,198.74,198.73,64.48468843]
[1756818083121,0.06,198.74,198.73,57.17775558]
[1756818083298,0.06,198.74,198.73,64.48468843]
[1756818083503,0.06,198.74,198.73,69.51664133]
[1756818084214,0.06,198.78,198.76,0.14216157]
[1756818084415,7.30693285,198.88,198.78,0.14216157]
[1756818084614,7.30693285,198.88,198.8,13.73775558]
[1756818084826,5.02791653,198.89,198.83,13.59559401]
[1756818085021,7.30693285,198.89,198.84,42.7]
[1756818085233,7.30693285,198.88,198.84,42.7]
[1756818085405,0.68,198.9,198.84,61.46692476]
[1756818085613,7.30693285,198.91,198.84,69.49385761]
[1756818085805,7.30693285,198.95,198.84,69.49385761]
[1756818086008,31.73230777,198.98,198.84,76.80079046]
[1756818086222,1e-08,198.85,198.84,76.80079046]
[1756818087420,1e-08,198.85,198.84,62.18692476]
[1756818087621,1e-08,198.85,198.84,26.79385761]
[1756818088032,1e-08,198.85,198.84,21.04468843]
[1756818088238,1e-08,198.85,198.84,56.29559401]
[1756818088742,1e-08,198.85,198.84,13.59559401]
[1756818088946,1e-08,198.85,198.84,56.27559401]
[1756818089149,1e-08,198.85,198.84,13.59559401]
[1756818089358,7.98693286,198.85,198.84,42.68]
[1756818089515,1e-08,198.85,198.84,56.27559401]
[1756818089721,0.68000001,198.85,198.84,56.27559401]
[1756818089914,7.98693286,198.85,198.84,56.27559401]
[1756818090150,7.98693286,198.85,198.84,42.68]
[1756818090321,0.68000001,198.85,198.77,13.59559401]
[1756818090637,7.30693285,198.83,198.79,13.59559401]
[1756818091023,7.30693285,198.83,198.8,0.14216157]
[1756818091221,7.30693285,198.83,198.82,13.59559401]
[1756818091536,7.98693285,198.83,198.82,13.59559401]
[1756818091713,13.01638707,198.83,198.82,13.59559401]
[1756818091913,13.01639376,198.83,198.81,42.68]
[1756818092139,7.98693285,198.82,198.76,13.59559401]
[1756818092345,7.30693285,198.79,198.77,42.82216157]
[1756818092632,0.68,198.82,198.77,42.68]
[1756818092937,7.30693285,198.8,198.77,42.68]
[1756818093132,0.68,198.82,198.77,42.68]
[1756818093133,7.30693285,198.79,198.77,42.68]
[1756818093323,7.30693285,198.8,198.77,42.68]
[1756818093520,0.68,198.82,198.77,42.68]
[1756818093723,7.30693285,198.8,198.77,42.68]
[1756818094320,5.02916918,198.84,198.75,13.59559401]
[1756818094321,7.30693285,198.78,198.75,13.59559401]
[1756818094561,7.30693285,198.76,198.75,13.59559401]
[1756818094833,7.98693285,198.76,198.75,42.68]
[1756818095240,7.30693285,198.76,198.75,42.68]
[1756818095441,0.68,198.79,198.75,42.68]
[1756818095737,7.30693285,198.76,198.65,0.72]
[1756818095953,7.30693285,198.69,198.63,7.30693285]
[1756818096123,7.30693285,198.67,198.65,42.66]
[1756818096458,0.68,198.69,198.66,42.66]
[1756818096951,0.68,198.68,198.62,0.03]
[1756818097313,0.68,198.67,198.64,38.43]
[1756818097525,7.30693285,198.65,198.64,38.43]
[1756818097721,7.98693285,198.65,198.64,38.43]
[1756818098520,7.98693285,198.65,198.64,0.03]
[1756818098721,33.98693285,198.65,198.64,0.03]
[1756818099631,39.02091221,198.65,198.64,0.03]
[1756818100433,33.98693285,198.65,198.64,0.03]
[1756818100632,39.02091221,198.65,198.64,0.03]
[1756818101336,13.02091221,198.65,198.62,0.03]
[1756818101540,5.0347397,198.62,198.6,0.03]
[1756818101731,40.6138657,198.61,198.6,0.03]
[1756818101923,41.2838657,198.61,198.6,0.03]
[1756818103741,46.3188589,198.61,198.6,0.03]
[1756818104244,39.01192605,198.61,198.6,0.03]
[1756818104448,26.0,198.61,198.6,0.03]
[1756818104625,33.30693285,198.61,198.6,0.03]
[1756818104945,33.97693285,198.61,198.6,0.03]
[1756818105142,33.30693285,198.61,198.6,0.03]
[1756818105629,26.0,198.61,198.6,0.03]
[1756818105820,33.30693285,198.61,198.6,0.03]
[1756818106243,0.67,198.65,198.6,0.03]
[1756818106244,0.67,198.69,198.61,13.59559401]
[1756818106545,26.0,198.67,198.62,42.68]
[1756818106723,7.30693285,198.63,198.62,42.68]
[1756818106923,7.97693285,198.63,198.6,0.03]
[1756818107146,0.67,198.66,198.61,42.68]
[1756818107341,0.67,198.65,198.61,42.68]
[1756818107648,26.0,198.67,198.6,0.03]
[1756818107649,0.67,198.64,198.6,0.03]
[1756818107851,26.0,198.61,198.6,0.03]
[1756818108054,33.30693285,198.61,198.6,0.03]
[1756818108432,33.97693285,198.61,198.6,0.03]
[1756818108835,33.30693285,198.61,198.6,0.03]
[1756818109242,26.0,198.61,198.6,0.03]
[1756818109582,0.67,198.67,198.6,14.31559401]
[1756818109754,7.30693285,198.65,198.6,14.31559401]
[1756818109927,7.30693285,198.65,198.62,13.59559401]
[1756818110127,0.67,198.71,198.63,42.68]
[1756818110432,0.67,198.71,198.63,56.27559401]
[1756818110433,7.30693285,198.64,198.63,56.27559401]
[1756818110647,7.30693285,198.65,198.63,56.27559401]
[1756818110948,7.30693285,198.66,198.64,13.59559401]
[1756818111152,7.30693285,198.67,198.64,14.28559401]
[1756818111447,7.30693285,198.68,198.66,13.59559401]
[1756818111650,26.0,198.72,198.67,42.68]
[1756818111848,7.30693285,198.68,198.67,42.68]
[1756818112050,32.11020219,198.76,198.68,13.59559401]
[1756818112351,31.44020219,198.76,198.7,20.90252686]
[1756818112526,38.74713504,198.76,198.72,13.59559401]
[1756818112736,31.44020219,198.76,198.72,13.59559401]
[1756818112930,7.30693285,198.74,198.68,7.30693285]
[1756818113154,31.44020219,198.76,198.68,7.30693285]
[1756818113155,7.30693285,198.73,198.69,42.66]
[1756818113364,7.30693285,198.72,198.68,13.59559401]
[1756818113570,7.30693285,198.71,198.7,13.59559401]
[1756818113739,63.14163705,198.76,198.7,13.59559401]